[Event "Torneo Nuevo Centro. Jornada 10"]
[Site "Chess.com"]
[Date "2020.08.21"]
[Round "4"]
[White "Cantero Navarro, Antonio"]
[Black "Granero Roca, Antonio"]
[Result "1-0"]
[WhiteElo "1953"]
[BlackElo "2489"]
[TimeControl "180+2"]
[EndTime "11:14:08 PDT"]
[Termination "Victoria de aprendis65 por jaque mate"]

1. e4 {[%clk 0:03:01.9]} 1... c6 {[%clk 0:02:59]} 2. c4 {[%clk 0:03:02]} 2... d6
{[%clk 0:02:59.5]} 3. Nc3 {[%clk 0:03:01.2]} 3... Nf6 {[%clk 0:03:00.4]} 4. d3
{[%clk 0:03:00.3]} 4... g6 {[%clk 0:03:01.3]} 5. g3 {[%clk 0:03:00.7]} 5... Bg7
{[%clk 0:03:02]} 6. Bg2 {[%clk 0:03:01.8]} 6... O-O {[%clk 0:03:02.6]} 7. Nge2
{[%clk 0:03:02]} 7... a5 {[%clk 0:03:03.4]} 8. O-O {[%clk 0:02:56.9]} 8... e5
{[%clk 0:03:04.3]} 9. h3 {[%clk 0:02:56.7]} 9... Nbd7 {[%clk 0:03:05]} 10. Kh2
{[%clk 0:02:57.1]} 10... Nc5 {[%clk 0:02:59.7]} 11. Be3 {[%clk 0:02:52.3]} 11...
Ne6 {[%clk 0:02:55.6]} 12. f4 {[%clk 0:02:44.1]} 12... exf4 {[%clk 0:02:52.5]}
13. gxf4 {[%clk 0:02:40.2]} 13... Nd7 {[%clk 0:02:50]} 14. d4 {[%clk 0:02:16.8]}
14... c5 {[%clk 0:02:30.9]} 15. dxc5 {[%clk 0:01:57.2]} 15... Ndxc5 {[%clk
0:02:25]} 16. Qd2 {[%clk 0:01:46.1]} 16... Qe7 {[%clk 0:02:16.6]} 17. Rad1
{[%clk 0:01:44.4]} 17... Rd8 {[%clk 0:02:15.2]} 18. Nd5 {[%clk 0:01:44.5]} 18...
Qe8 {[%clk 0:02:08.4]} 19. f5 {[%clk 0:01:25.2]} 19... Nf8 {[%clk 0:02:05.9]}
20. f6 {[%clk 0:01:21.6]} 20... Nxe4 {[%clk 0:01:49.8]} 21. Bxe4 {[%clk
0:01:16.5]} 21... Qxe4 {[%clk 0:01:50.2]} 22. fxg7 {[%clk 0:01:14.4]} 22... Kxg7
{[%clk 0:01:48.3]} 23. Qd4+ {[%clk 0:01:14.2]} 23... Qxd4 {[%clk 0:01:42.2]} 24.
Bxd4+ {[%clk 0:01:14.1]} 24... Kh6 {[%clk 0:01:42.6]} 25. Bf6 {[%clk 0:01:05.7]}
25... Re8 {[%clk 0:01:31.5]} 26. Ng3 {[%clk 0:00:45]} 26... Ne6 {[%clk
0:01:22.1]} 27. Rfe1 {[%clk 0:00:41]} 27... Ra6 {[%clk 0:01:17]} 28. Rd4 {[%clk
0:00:34.4]} 28... g5 {[%clk 0:01:13.7]} 29. Rde4 {[%clk 0:00:26.2]} 29... Kg6
{[%clk 0:01:10.9]} 30. h4 {[%clk 0:00:20.5]} 30... h6 {[%clk 0:01:05.6]} 31. h5+
{[%clk 0:00:20.2]} 31... Kh7 {[%clk 0:01:06.5]} 32. Nf5 {[%clk 0:00:19.4]} 32...
Bd7 {[%clk 0:01:00.8]} 33. Nd4 {[%clk 0:00:14.9]} 33... Rc8 {[%clk 0:00:57.7]}
34. b3 {[%clk 0:00:12.8]} 34... a4 {[%clk 0:00:58.5]} 35. Nxe6 {[%clk
0:00:07.8]} 35... fxe6 {[%clk 0:00:57.3]} 36. Ne7 {[%clk 0:00:08.2]} 36... Rf8
{[%clk 0:00:49.7]} 37. Bd4 {[%clk 0:00:06.9]} 37... e5 {[%clk 0:00:45.5]} 38.
Bg1 {[%clk 0:00:05]} 38... axb3 {[%clk 0:00:46.2]} 39. axb3 {[%clk 0:00:05.5]}
39... Ra3 {[%clk 0:00:43.1]} 40. b4 {[%clk 0:00:03.1]} 40... Rf7 {[%clk
0:00:41.8]} 41. Nd5 {[%clk 0:00:03.2]} 41... Rh3+ {[%clk 0:00:37.6]} 42. Kg2
{[%clk 0:00:02.6]} 42... Rff3 {[%clk 0:00:37.3]} 43. Bf2 {[%clk 0:00:03.3]}
43... Rb3 {[%clk 0:00:31.3]} 44. Nf6+ {[%clk 0:00:02.8]} 44... Kg7 {[%clk
0:00:31.1]} 45. Nxd7 {[%clk 0:00:04.5]} 45... Rhc3 {[%clk 0:00:30.3]} 46. c5
{[%clk 0:00:05.5]} 46... Rc2 {[%clk 0:00:27.6]} 47. cxd6 {[%clk 0:00:06.1]}
47... Rbb2 {[%clk 0:00:16.8]} 48. Rf1 {[%clk 0:00:07]} 48... Kf7 {[%clk
0:00:15.5]} 49. Nxe5+ {[%clk 0:00:07.7]} 49... Kf6 {[%clk 0:00:15.5]} 50. Ng4+
{[%clk 0:00:08.3]} 50... Kf5 {[%clk 0:00:15.8]} 51. Rd4 {[%clk 0:00:08.9]} 51...
Re2 {[%clk 0:00:11.4]} 52. d7 {[%clk 0:00:09.3]} 52... Rbd2 {[%clk 0:00:08.3]}
53. d8=Q {[%clk 0:00:08.9]} 53... Rxd4 {[%clk 0:00:08.3]} 54. Qxd4 {[%clk
0:00:09.5]} 54... Re4 {[%clk 0:00:09.7]} 55. Nxh6+ {[%clk 0:00:09.8]} 55... Kf4
{[%clk 0:00:09.9]} 56. Bg3# {[%clk 0:00:09]} 1

[Event "Torneo Nuevo Centro. Jornada 10"]
[Site "Chess.com"]
[Date "2020.08.21"]
[Round "4"]
[White "Aymerich Rosell, Pablo"]
[Black "Gutierrez Marco, Dario"]
[Result "1/2-1/2"]
[WhiteElo "1968"]
[BlackElo "1835"]
[TimeControl "180+2"]
[EndTime "11:14:30 PDT"]
[Termination "Tablas por repeticiÃ³n"]

1. e4 {[%clk 0:03:01.9]} 1... c5 {[%clk 0:03:00.5]} 2. Nf3 {[%clk 0:03:02.1]}
2... e6 {[%clk 0:03:01.4]} 3. d4 {[%clk 0:03:02.3]} 3... cxd4 {[%clk 0:03:03.3]}
4. Nxd4 {[%clk 0:03:03.5]} 4... Nc6 {[%clk 0:03:04.2]} 5. Nc3 {[%clk 0:03:04.1]}
5... Qc7 {[%clk 0:03:03.1]} 6. Be3 {[%clk 0:03:03.5]} 6... a6 {[%clk 0:03:04.1]}
7. f3 {[%clk 0:03:00.3]} 7... Nf6 {[%clk 0:02:57.5]} 8. Qd2 {[%clk 0:03:00.9]}
8... Be7 {[%clk 0:02:58.5]} 9. O-O-O {[%clk 0:03:01.5]} 9... b5 {[%clk 0:02:59]}
10. g4 {[%clk 0:02:57.1]} 10... Nxd4 {[%clk 0:02:56.9]} 11. Bxd4 {[%clk
0:02:57.1]} 11... e5 {[%clk 0:02:57.2]} 12. Be3 {[%clk 0:02:56.3]} 12... Bb7
{[%clk 0:02:57.3]} 13. g5 {[%clk 0:02:51.7]} 13... Nh5 {[%clk 0:02:56.2]} 14.
Nd5 {[%clk 0:02:42.3]} 14... Bxd5 {[%clk 0:02:53.3]} 15. exd5 {[%clk 0:02:33.5]}
15... Rc8 {[%clk 0:02:47.2]} 16. Bd3 {[%clk 0:02:16.1]} 16... O-O {[%clk
0:02:23.3]} 17. Kb1 {[%clk 0:02:08.5]} 17... Bc5 {[%clk 0:02:16.3]} 18. d6
{[%clk 0:01:48]} 18... Qb6 {[%clk 0:02:05.7]} 19. Rhe1 {[%clk 0:01:37.1]} 19...
Bxe3 {[%clk 0:02:04.3]} 20. Qxe3 {[%clk 0:01:27]} 20... Qxe3 {[%clk 0:01:38.5]}
21. Rxe3 {[%clk 0:01:27.8]} 21... Rfe8 {[%clk 0:01:39.5]} 22. a4 {[%clk
0:01:27.4]} 22... Nf4 {[%clk 0:01:28.6]} 23. Bf5 {[%clk 0:01:14.5]} 23... Rcd8
{[%clk 0:01:17.5]} 24. axb5 {[%clk 0:01:13.5]} 24... axb5 {[%clk 0:01:18]} 25.
Rb3 {[%clk 0:01:10.9]} 25... g6 {[%clk 0:01:15.7]} 26. Bg4 {[%clk 0:01:07.8]}
26... h5 {[%clk 0:01:02.7]} 27. gxh6 {[%clk 0:01:05.2]} 27... f5 {[%clk
0:01:02.9]} 28. Bxf5 {[%clk 0:00:56.1]} 28... gxf5 {[%clk 0:01:02.5]} 29. Rxb5
{[%clk 0:00:52.3]} 29... Kh7 {[%clk 0:01:01.2]} 30. Re1 {[%clk 0:00:48.6]} 30...
Ng6 {[%clk 0:00:55.2]} 31. c4 {[%clk 0:00:46.1]} 31... Rc8 {[%clk 0:00:49.5]}
32. c5 {[%clk 0:00:45.7]} 32... Rb8 {[%clk 0:00:43.7]} 33. Rxb8 {[%clk
0:00:38.2]} 33... Rxb8 {[%clk 0:00:45.6]} 34. Ka2 {[%clk 0:00:35.8]} 34... Rb5
{[%clk 0:00:44.5]} 35. Rc1 {[%clk 0:00:35.3]} 35... e4 {[%clk 0:00:37.1]} 36.
fxe4 {[%clk 0:00:35.4]} 36... fxe4 {[%clk 0:00:39]} 37. Ka3 {[%clk 0:00:27.2]}
37... Ne5 {[%clk 0:00:34.1]} 38. b4 {[%clk 0:00:20.9]} 38... Nd3 {[%clk
0:00:29.3]} 39. Rc4 {[%clk 0:00:19.6]} 39... e3 {[%clk 0:00:11.9]} 40. Re4
{[%clk 0:00:20.4]} 40... Rxb4 {[%clk 0:00:13.2]} 41. Rxe3 {[%clk 0:00:20.1]}
41... Rd4 {[%clk 0:00:13.7]} 42. Re7+ {[%clk 0:00:20.6]} 42... Kxh6 {[%clk
0:00:13.6]} 43. Rxd7 {[%clk 0:00:20.4]} 43... Nxc5 {[%clk 0:00:14.9]} 44. Rd8
{[%clk 0:00:20.9]} 44... Ne6 {[%clk 0:00:13.8]} 45. Rh8+ {[%clk 0:00:20.2]}
45... Kg7 {[%clk 0:00:13.6]} 46. Re8 {[%clk 0:00:19]} 46... Rxd6 {[%clk
0:00:14.2]} 47. Re7+ {[%clk 0:00:19.2]} 47... Kf6 {[%clk 0:00:14.7]} 48. Rh7
{[%clk 0:00:19.9]} 48... Rd3+ {[%clk 0:00:15.2]} 49. Kb4 {[%clk 0:00:20.3]}
49... Rd2 {[%clk 0:00:15.7]} 50. Rh6+ {[%clk 0:00:20.9]} 50... Kf5 {[%clk
0:00:16.6]} 51. Rh8 {[%clk 0:00:22]} 51... Ke5 {[%clk 0:00:17.1]} 52. h4 {[%clk
0:00:21.2]} 52... Rh2 {[%clk 0:00:14.4]} 53. h5 {[%clk 0:00:21.9]} 53... Rh4+
{[%clk 0:00:14.7]} 54. Kb3 {[%clk 0:00:22.2]} 54... Kf5 {[%clk 0:00:13.7]} 55.
Re8 {[%clk 0:00:21.5]} 55... Rxh5 {[%clk 0:00:11.9]} 56. Re7 {[%clk 0:00:22.8]}
56... Ke5 {[%clk 0:00:11.5]} 57. Re8 {[%clk 0:00:23.6]} 57... Rh4 {[%clk
0:00:11.3]} 58. Re7 {[%clk 0:00:24]} 58... Rd4 {[%clk 0:00:10.9]} 59. Re8 {[%clk
0:00:24.7]} 59... Rd1 {[%clk 0:00:10.7]} 60. Kc3 {[%clk 0:00:25.4]} 60... Rc1+
{[%clk 0:00:09.5]} 61. Kd3 {[%clk 0:00:24.8]} 61... Rc6 {[%clk 0:00:07.2]} 62.
Re7 {[%clk 0:00:25.3]} 62... Rd6+ {[%clk 0:00:08]} 63. Kc3 {[%clk 0:00:25.8]}
63... Rb6 {[%clk 0:00:07.8]} 64. Re8 {[%clk 0:00:26.2]} 64... Kd6 {[%clk
0:00:08.6]} 65. Rh8 {[%clk 0:00:26.8]} 65... Rc6+ {[%clk 0:00:09.5]} 66. Kb3
{[%clk 0:00:27.7]} 66... Rb6+ {[%clk 0:00:10.5]} 67. Kc3 {[%clk 0:00:28.6]}
67... Rc6+ {[%clk 0:00:11.6]} 68. Kb3 {[%clk 0:00:29.7]} 68... Rb6+ {[%clk
0:00:12.3]} 69. Kc3 {[%clk 0:00:30.8]} 1/2-1

[Event "Torneo Nuevo Centro. Jornada 10"]
[Site "Chess.com"]
[Date "2020.08.21"]
[Round "4"]
[White "Yuste Valenzuela, Alejandro"]
[Black "Perez Garcia, Jose Miguel"]
[Result "0-1"]
[WhiteElo "1875"]
[BlackElo "2068"]
[TimeControl "180+2"]
[EndTime "11:15:06 PDT"]
[Termination "Victoria de PEREZOV69 por abandono"]

1. e4 {[%clk 0:03:01.9]} 1... c6 {[%clk 0:02:53.4]} 2. d4 {[%clk 0:03:02]} 2...
d5 {[%clk 0:02:54.6]} 3. e5 {[%clk 0:03:03.7]} 3... c5 {[%clk 0:02:55]} 4. dxc5
{[%clk 0:03:05.1]} 4... Nc6 {[%clk 0:02:55.8]} 5. a3 {[%clk 0:03:06.5]} 5...
Nxe5 {[%clk 0:02:53.8]} 6. b4 {[%clk 0:03:07.3]} 6... a5 {[%clk 0:02:51.6]} 7.
Bb2 {[%clk 0:02:56.3]} 7... Ng6 {[%clk 0:02:51.6]} 8. b5 {[%clk 0:02:55.7]} 8...
e5 {[%clk 0:02:50.8]} 9. Nc3 {[%clk 0:02:31.9]} 9... Nf6 {[%clk 0:02:46.8]} 10.
Na4 {[%clk 0:02:18.3]} 10... Bf5 {[%clk 0:02:42.3]} 11. Nf3 {[%clk 0:02:16.7]}
11... Bg4 {[%clk 0:02:38]} 12. h3 {[%clk 0:02:15.7]} 12... Bxf3 {[%clk
0:02:37.8]} 13. Qxf3 {[%clk 0:02:17.6]} 13... Rc8 {[%clk 0:02:36.3]} 14. c6
{[%clk 0:01:39]} 14... bxc6 {[%clk 0:02:30.1]} 15. bxc6 {[%clk 0:01:40.9]} 15...
Bd6 {[%clk 0:02:29.8]} 16. Be2 {[%clk 0:01:22.3]} 16... O-O {[%clk 0:02:26.5]}
17. O-O {[%clk 0:01:23]} 17... Rxc6 {[%clk 0:02:26.7]} 18. Nc3 {[%clk
0:01:23.8]} 18... d4 {[%clk 0:02:24.9]} 19. Qxc6 {[%clk 0:01:19.8]} 19... dxc3
{[%clk 0:02:25.9]} 20. Qxc3 {[%clk 0:01:21.7]} 20... Qb6 {[%clk 0:02:17.9]} 21.
Bf3 {[%clk 0:01:06]} 21... e4 {[%clk 0:02:17.5]} 22. Bg4 {[%clk 0:01:06.6]}
22... Be5 {[%clk 0:02:18.2]} 23. Qd2 {[%clk 0:00:25.6]} 23... Nxg4 {[%clk
0:02:10.9]} 24. hxg4 {[%clk 0:00:15.1]} 24... Qxb2 {[%clk 0:02:11.1]} 25. Rab1
{[%clk 0:00:15.1]} 25... Qxa3 {[%clk 0:02:11.8]} 26. Qd5 {[%clk 0:00:13.3]}
26... e3 {[%clk 0:02:06.8]} 27. f4 {[%clk 0:00:05.8]} 27... Bxf4 {[%clk
0:02:06.1]} 28. Qf3 {[%clk 0:00:06.6]} 28... Qc5 {[%clk 0:02:01.7]} 29. Qe2
{[%clk 0:00:06.9]} 29... Bg5 {[%clk 0:02:00]} 30. Rb5 {[%clk 0:00:06.9]} 30...
Qc7 {[%clk 0:01:59.3]} 31. Rxg5 {[%clk 0:00:06.5]} 31... a4 {[%clk 0:01:52.2]}
32. Qxe3 {[%clk 0:00:07]} 32... Qxc2 {[%clk 0:01:53.1]} 33. Rgf5 {[%clk
0:00:07]} 33... h6 {[%clk 0:01:47.3]} 34. Qf2 {[%clk 0:00:08.7]} 34... Qb3
{[%clk 0:01:46.4]} 35. g5 {[%clk 0:00:10.2]} 35... h5 {[%clk 0:01:45.4]} 36. Rf3
{[%clk 0:00:09.6]} 36... Qc4 {[%clk 0:01:43.1]} 37. Rh3 {[%clk 0:00:10.3]} 37...
h4 {[%clk 0:01:43.5]} 38. Rf3 {[%clk 0:00:10.9]} 38... Ne5 {[%clk 0:01:39.9]}
39. Rf4 {[%clk 0:00:10.3]} 39... Qb3 {[%clk 0:01:38.7]} 40. Rxh4 {[%clk
0:00:10.4]} 40... a3 {[%clk 0:01:39.6]} 41. Qf5 {[%clk 0:00:09.8]} 41... Ng6
{[%clk 0:01:38]} 42. Rh3 {[%clk 0:00:08.3]} 42... Qb6+ {[%clk 0:01:35.1]} 43.
Qf2 {[%clk 0:00:10]} 43... Qa5 {[%clk 0:01:31.4]} 44. Qa2 {[%clk 0:00:09.7]}
44... Qc5+ {[%clk 0:01:28.9]} 45. Kh1 {[%clk 0:00:09.6]} 45... Qxg5 {[%clk
0:01:30.2]} 46. Qxa3 {[%clk 0:00:09.9]} 46... Ne5 {[%clk 0:01:28.4]} 47. Qg3
{[%clk 0:00:09.3]} 47... Qxg3 {[%clk 0:01:28.2]} 48. Rxg3 {[%clk 0:00:10.7]}
48... f6 {[%clk 0:01:30.1]} 49. Kg1 {[%clk 0:00:07.3]} 49... Kf7 {[%clk
0:01:30.5]} 50. Kf2 {[%clk 0:00:08.4]} 50... Ra8 {[%clk 0:01:29.1]} 51. Rb1
{[%clk 0:00:08.7]} 51... Ra2+ {[%clk 0:01:28.3]} 52. Kg1 {[%clk 0:00:10.2]}
52... Ra7 {[%clk 0:01:30.2]} 53. Rb4 {[%clk 0:00:08.4]} 53... Nc6 {[%clk
0:01:25.6]} 54. Rbg4 {[%clk 0:00:08.3]} 54... g5 {[%clk 0:01:25.1]} 55. Rc4
{[%clk 0:00:09.4]} 55... Ne5 {[%clk 0:01:25.5]} 56. Rb4 {[%clk 0:00:09.7]} 56...
Kg6 {[%clk 0:01:21.4]} 57. Rb6 {[%clk 0:00:09.5]} 57... Ra1+ {[%clk 0:01:18.8]}
58. Kh2 {[%clk 0:00:09.2]} 58... Ra8 {[%clk 0:01:18.2]} 59. Re3 {[%clk 0:00:10]}
59... Ng4+ {[%clk 0:01:18.1]} 60. Kg3 {[%clk 0:00:11.4]} 60... Nxe3 {[%clk
0:01:20]} 61. Re6 {[%clk 0:00:09.8]} 61... Nf5+ {[%clk 0:01:20.6]} 62. Kf2
{[%clk 0:00:09.2]} 62... Ra2+ {[%clk 0:01:21]} 63. Kg1 {[%clk 0:00:10.7]} 63...
Ra3 {[%clk 0:01:22.9]} 64. Rb6 {[%clk 0:00:09.4]} 64... Rg3 {[%clk 0:01:20.6]}
65. Kh2 {[%clk 0:00:09]} 65... Rg4 {[%clk 0:01:21.1]} 66. Rb5 {[%clk 0:00:08.9]}
66... Rh4+ {[%clk 0:01:22.1]} 67. Kg1 {[%clk 0:00:10.3]} 67... Ng7 {[%clk
0:01:20.7]} 68. Rb6 {[%clk 0:00:10.5]} 68... Nh5 {[%clk 0:01:20.1]} 69. Rb5
{[%clk 0:00:10.1]} 69... Rg4 {[%clk 0:01:21]} 70. Rb6 {[%clk 0:00:11]} 70... Nf4
{[%clk 0:01:21.9]} 71. Ra6 {[%clk 0:00:09.9]} 71... Rxg2+ {[%clk 0:01:22.6]} 72.
Kh1 {[%clk 0:00:09.2]} 72... Rg4 {[%clk 0:01:23.3]} 73. Ra4 {[%clk 0:00:08.4]}
73... Nh3 {[%clk 0:01:21.8]} 74. Ra5 {[%clk 0:00:06.5]} 74... Rh4 {[%clk
0:01:22.5]} 75. Kg2 {[%clk 0:00:07.4]} 75... Nf4+ {[%clk 0:01:24.4]} 76. Kg3
{[%clk 0:00:07.6]} 76... Nh5+ {[%clk 0:01:26.3]} 77. Kf2 {[%clk 0:00:08.5]}
77... Rf4+ {[%clk 0:01:27.9]} 78. Kg2 {[%clk 0:00:07.7]} 78... Rf5 {[%clk
0:01:29.8]} 79. Ra8 {[%clk 0:00:06.6]} 79... g4 {[%clk 0:01:30.1]} 80. Rg8+
{[%clk 0:00:06.9]} 80... Ng7 {[%clk 0:01:31.2]} 81. Kg3 {[%clk 0:00:06.3]} 81...
Rg5 {[%clk 0:01:32.4]} 82. Ra8 {[%clk 0:00:03]} 82... Nh5+ {[%clk 0:01:33]} 83.
Kg2 {[%clk 0:00:03]} 83... g3 {[%clk 0:01:34]} 84. Kg1 {[%clk 0:00:02.6]} 84...
g2 {[%clk 0:01:33]} 85. Ra6 {[%clk 0:00:04.5]} 85... Nf4 {[%clk 0:01:33.1]} 86.
Ra2 {[%clk 0:00:05.6]} 86... Nh3+ {[%clk 0:01:33.5]} 0

[Event "Torneo Nuevo Centro. Jornada 10"]
[Site "Chess.com"]
[Date "2020.08.21"]
[Round "4"]
[White "Escalona Moncholi, Felix"]
[Black "Valmaña Cantó, Jaime"]
[Result "1/2-1/2"]
[WhiteElo "2085"]
[BlackElo "2401"]
[TimeControl "180+2"]
[EndTime "11:15:40 PDT"]
[Termination "Tablas por repeticiÃ³n"]

1. e4 {[%clk 0:03:01.9]} 1... Nf6 {[%clk 0:03:01.9]} 2. e5 {[%clk 0:03:02.2]}
2... Ng8 {[%clk 0:03:03.8]} 3. d4 {[%clk 0:03:03]} 3... c5 {[%clk 0:03:05.7]} 4.
c3 {[%clk 0:02:56.8]} 4... cxd4 {[%clk 0:03:07.6]} 5. cxd4 {[%clk 0:02:57.5]}
5... d6 {[%clk 0:03:05]} 6. Nf3 {[%clk 0:02:47.2]} 6... dxe5 {[%clk 0:03:01.8]}
7. Nxe5 {[%clk 0:02:49.1]} 7... Nf6 {[%clk 0:02:54.6]} 8. Bc4 {[%clk 0:02:42.1]}
8... e6 {[%clk 0:02:53.5]} 9. O-O {[%clk 0:02:33.9]} 9... Be7 {[%clk 0:02:52.6]}
10. Nc3 {[%clk 0:02:31.5]} 10... O-O {[%clk 0:02:53]} 11. Re1 {[%clk 0:02:12.8]}
11... Nc6 {[%clk 0:02:36.9]} 12. Nxc6 {[%clk 0:02:10.5]} 12... bxc6 {[%clk
0:02:36.3]} 13. Bg5 {[%clk 0:01:58.2]} 13... Rb8 {[%clk 0:02:34]} 14. Bb3 {[%clk
0:01:56.9]} 14... Rb4 {[%clk 0:02:30.3]} 15. Be3 {[%clk 0:01:45.6]} 15... Nd5
{[%clk 0:02:23.6]} 16. Nxd5 {[%clk 0:01:40.4]} 16... cxd5 {[%clk 0:02:22.6]} 17.
Qd3 {[%clk 0:01:28.9]} 17... Qb6 {[%clk 0:02:19.1]} 18. Red1 {[%clk 0:01:09.9]}
18... Ba6 {[%clk 0:02:16.5]} 19. Qd2 {[%clk 0:01:08.1]} 19... Bc4 {[%clk
0:01:39.1]} 20. Bxc4 {[%clk 0:00:51.8]} 20... Rxc4 {[%clk 0:01:29.5]} 21. b3
{[%clk 0:00:50.8]} 21... Rc6 {[%clk 0:01:16.2]} 22. Rac1 {[%clk 0:00:50.9]}
22... Rfc8 {[%clk 0:01:17.3]} 23. Rxc6 {[%clk 0:00:50.2]} 23... Rxc6 {[%clk
0:01:19.2]} 24. Rc1 {[%clk 0:00:50.2]} 24... h6 {[%clk 0:01:15.3]} 25. Rxc6
{[%clk 0:00:49.8]} 25... Qxc6 {[%clk 0:01:17.2]} 26. Qc1 {[%clk 0:00:49.3]}
26... Qxc1+ {[%clk 0:01:12.8]} 27. Bxc1 {[%clk 0:00:51.2]} 27... Kf8 {[%clk
0:01:06]} 28. Kf1 {[%clk 0:00:51.3]} 28... Ke8 {[%clk 0:01:07.6]} 29. Ke2 {[%clk
0:00:49.5]} 29... Kd7 {[%clk 0:01:09.1]} 30. Kd3 {[%clk 0:00:48.8]} 30... Kc6
{[%clk 0:01:10.3]} 31. Bd2 {[%clk 0:00:49]} 31... Kb5 {[%clk 0:01:11.4]} 32. a4+
{[%clk 0:00:44.1]} 32... Kc6 {[%clk 0:01:11]} 33. Bc3 {[%clk 0:00:40.8]} 33...
Bd6 {[%clk 0:01:04.8]} 34. b4 {[%clk 0:00:36.7]} 34... Bxh2 {[%clk 0:00:47.4]}
35. g3 {[%clk 0:00:37]} 35... h5 {[%clk 0:00:48.5]} 36. Ke2 {[%clk 0:00:29.7]}
36... h4 {[%clk 0:00:47.6]} 37. gxh4 {[%clk 0:00:28.5]} 37... g6 {[%clk
0:00:45]} 38. Kf3 {[%clk 0:00:23.3]} 38... a6 {[%clk 0:00:36.2]} 39. Kg4 {[%clk
0:00:20.2]} 39... Kd7 {[%clk 0:00:18.6]} 40. h5 {[%clk 0:00:16.7]} 40... gxh5+
{[%clk 0:00:18.6]} 41. Kxh5 {[%clk 0:00:18.6]} 41... Bg1 {[%clk 0:00:19.8]} 42.
Be1 {[%clk 0:00:18.7]} 42... Ke7 {[%clk 0:00:18.3]} 43. Kg4 {[%clk 0:00:19.5]}
43... Bh2 {[%clk 0:00:19.6]} 44. Bc3 {[%clk 0:00:18.3]} 44... Bd6 {[%clk
0:00:20.9]} 45. f3 {[%clk 0:00:15]} 45... Kf6 {[%clk 0:00:21.2]} 46. Bd2 {[%clk
0:00:14.7]} 46... Ke7 {[%clk 0:00:19]} 47. Bc3 {[%clk 0:00:15.8]} 47... f6
{[%clk 0:00:17.9]} 48. f4 {[%clk 0:00:15]} 48... Kf7 {[%clk 0:00:19.2]} 49. Bd2
{[%clk 0:00:12.8]} 49... Kg6 {[%clk 0:00:17.7]} 50. Bc3 {[%clk 0:00:12.9]} 50...
Bc7 {[%clk 0:00:16.2]} 51. Bd2 {[%clk 0:00:13.1]} 51... Bb6 {[%clk 0:00:15.7]}
52. Bc3 {[%clk 0:00:14.2]} 52... Kh6 {[%clk 0:00:15.4]} 53. Kh4 {[%clk
0:00:14.7]} 53... Kg6 {[%clk 0:00:15.6]} 54. Kg4 {[%clk 0:00:15.5]} 54... Ba7
{[%clk 0:00:17.3]} 55. Bb2 {[%clk 0:00:15.5]} 55... Kf7 {[%clk 0:00:16.7]} 56.
Bc3 {[%clk 0:00:16.4]} 56... Ke7 {[%clk 0:00:17.6]} 57. f5 {[%clk 0:00:15.9]}
57... Kf7 {[%clk 0:00:15.8]} 58. Bb2 {[%clk 0:00:16.2]} 58... Bb8 {[%clk
0:00:12.5]} 59. fxe6+ {[%clk 0:00:09.6]} 59... Kxe6 {[%clk 0:00:14.4]} 60. Bc3
{[%clk 0:00:09.7]} 60... f5+ {[%clk 0:00:15.7]} 61. Kf3 {[%clk 0:00:10.6]} 61...
Kf6 {[%clk 0:00:15.3]} 62. Bd2 {[%clk 0:00:10]} 62... Ba7 {[%clk 0:00:13.3]} 63.
Be3 {[%clk 0:00:08.5]} 63... Bb6 {[%clk 0:00:12.4]} 64. Kf4 {[%clk 0:00:09.1]}
64... Bc7+ {[%clk 0:00:13.5]} 65. Kf3 {[%clk 0:00:10.2]} 65... Bd6 {[%clk
0:00:15.4]} 66. b5 {[%clk 0:00:10.7]} 66... axb5 {[%clk 0:00:14.3]} 67. axb5
{[%clk 0:00:12.6]} 67... Bc7 {[%clk 0:00:14.6]} 68. Bf4 {[%clk 0:00:13]} 68...
Bb6 {[%clk 0:00:13.9]} 69. Be5+ {[%clk 0:00:13.8]} 69... Kg5 {[%clk 0:00:14]}
70. Bf4+ {[%clk 0:00:14]} 70... Kh4 {[%clk 0:00:14.6]} 71. Be5 {[%clk
0:00:14.6]} 71... Kg5 {[%clk 0:00:14.8]} 72. Bf4+ {[%clk 0:00:15.5]} 72... Kf6
{[%clk 0:00:16.1]} 73. Be5+ {[%clk 0:00:16.7]} 73... Ke6 {[%clk 0:00:17.3]} 74.
Kf4 {[%clk 0:00:17.2]} 74... Bd8 {[%clk 0:00:16.8]} 75. Bb8 {[%clk 0:00:15.4]}
75... Bb6 {[%clk 0:00:15.9]} 76. Be5 {[%clk 0:00:15.9]} 76... Ba7 {[%clk
0:00:16.5]} 77. Bh8 {[%clk 0:00:15.4]} 77... Bb8+ {[%clk 0:00:16.4]} 78. Kf3
{[%clk 0:00:11.1]} 78... Bc7 {[%clk 0:00:16.1]} 79. Bg7 {[%clk 0:00:11.7]} 79...
Bd6 {[%clk 0:00:16.3]} 80. Bh8 {[%clk 0:00:11]} 80... Bc7 {[%clk 0:00:16.9]} 81.
Bg7 {[%clk 0:00:11.7]} 81... Kf7 {[%clk 0:00:17.3]} 82. Bh8 {[%clk 0:00:11.8]}
82... Bb6 {[%clk 0:00:17.1]} 83. Be5 {[%clk 0:00:12.1]} 83... Ke6 {[%clk
0:00:17]} 84. Kf4 {[%clk 0:00:13]} 1/2-1